fUST/lending_fUST_20250910
["ID","MTS","AMOUNT","RATE_DAILY","PERIOD"]
[384619317,1757484655620,-480.0,0.00014246,2]
[384619318,1757484655630,-480.0,0.00014246,2]
[384619319,1757484655639,-480.0,0.00014246,2]
[384619320,1757484655648,-480.0,0.00014246,2]
[384619321,1757484655657,-480.0,0.00014246,2]
[384619322,1757484655666,-480.0,0.00014246,2]
[384619323,1757484655675,-480.0,0.00014246,2]
[384619324,1757484655685,-480.0,0.00014246,2]
[384619325,1757484655694,-898.09,0.00014246,2]
[384619326,1757484655703,-480.0,0.00014246,2]
[384619327,1757484655712,-987.19,0.00014246,2]
[384619328,1757484655721,-480.0,0.00014246,2]
[384619329,1757484655731,-8763.89,0.00014246,2]
[384619330,1757484655740,-357.26728658,0.00014246,2]
[384619331,1757484655750,-480.0,0.00014246,2]
[384619332,1757484655760,-480.0,0.00014246,2]
[384619333,1757484655770,-723.59,0.00014246,2]
[384619334,1757484655782,-480.0,0.00014246,2]
[384619335,1757484655793,-480.0,0.00014246,2]
[384619336,1757484655802,-480.0,0.00014246,2]
[384619337,1757484655813,-480.0,0.00014246,2]
[384619338,1757484655823,-480.0,0.00014246,2]
[384619339,1757484655832,-488.36526655,0.00014246,2]
[384619340,1757484655841,-480.0,0.00014246,2]
[384619341,1757484655851,-480.0,0.00014246,2]
[384619342,1757484655861,-483.9184158,0.00014246,2]
[384619343,1757484655871,-480.0,0.00014246,2]
[384619344,1757484655881,-480.0,0.00014246,2]
[384619345,1757484655890,-480.0,0.00014246,2]
[384619346,1757484655899,-480.0,0.00014246,2]
[384619347,1757484655909,-480.0,0.00014246,2]
[384619348,1757484655918,-487.02980772,0.00014246,2]
[384619349,1757484655927,-480.0,0.00014246,2]
[384619350,1757484655937,-483.46647316,0.00014246,2]
[384619351,1757484655947,-585.24,0.00014246,2]
[384619352,1757484655956,-480.0,0.00014246,2]
[384619353,1757484655965,-480.0,0.00014246,2]
[384619354,1757484655975,-480.0,0.00014246,2]
[384619355,1757484655984,-480.0,0.00014246,2]
[384619356,1757484655993,-480.0,0.00014246,2]
[384619357,1757484656003,-483.20875717,0.00014246,2]
[384619358,1757484656012,-480.0,0.00014246,2]
[384619359,1757484656021,-480.0,0.00014246,2]
[384619360,1757484656031,-496.62797253,0.00014246,2]
[384619361,1757484656040,-760.57,0.00014246,2]
[384619362,1757484656049,-480.0,0.00014246,2]
[384619363,1757484656058,-480.0,0.00014246,2]
[384619364,1757484656067,-480.0,0.00014246,2]
[384619365,1757484656076,-480.0,0.00014246,2]
[384619366,1757484656085,-480.0,0.00014246,2]
[384619367,1757484656094,-489.03312063,0.00014246,2]
[384619368,1757484656103,-335.50656285,0.00014246,2]
[384619369,1757484656114,-484.75368246,0.00014246,2]
[384619370,1757484656123,-815.92,0.00014246,2]
[384619371,1757484656132,-480.0,0.00014246,2]
[384619372,1757484656142,-485.55478675,0.00014246,2]
[384619373,1757484656151,-480.0,0.00014246,2]
[384619374,1757484656160,-480.0,0.00014246,2]
[384619375,1757484656169,-480.0,0.00014246,2]
[384619376,1757484656178,-480.0,0.00014246,2]
[384619377,1757484656187,-480.0,0.00014246,2]
[384619378,1757484656196,-480.0,0.00014246,2]
[384619379,1757484656205,-480.0,0.00014246,2]
[384619380,1757484656214,-484.89584629,0.00014246,2]
[384619381,1757484656223,-480.0,0.00014246,2]
[384619382,1757484656232,-480.0,0.00014246,2]
[384619383,1757484656241,-480.0,0.00014246,2]
[384619384,1757484656251,-485.56037806,0.00014246,2]
[384619385,1757484656261,-597.94220811,0.00014246,2]
[384619386,1757484656270,-480.0,0.00014246,2]
[384619387,1757484656280,-482.45990539,0.00014246,2]
[384619388,1757484656289,-480.0,0.00014246,2]
[384619389,1757484656299,-480.0,0.00014246,2]
[384619390,1757484656308,-480.0,0.00014246,2]
[384619391,1757484656317,-480.0,0.00014246,2]
[384619392,1757484656327,-480.0,0.00014246,2]
[384619393,1757484656336,-798.65,0.00014246,2]
[384619394,1757484656345,-493.25311205,0.00014246,2]
[384619395,1757484656354,-476.01887152,0.00014246,2]
[384619396,1757484656364,-480.0,0.00014246,2]
[384619397,1757484656373,-5038.12,0.00014246,2]
[384619398,1757484656383,-480.0,0.00014246,2]
[384619399,1757484656392,-1104.48,0.00014246,2]
[384619400,1757484656401,-480.0,0.00014246,2]
[384619401,1757484656409,-205.9217918,0.00014246,2]
[384619402,1757484656420,-480.0,0.00014246,2]
[384619403,1757484656429,-480.0,0.00014246,2]
[384619404,1757484656438,-480.0,0.00014246,2]
[384619405,1757484656448,-1873.01,0.00014246,2]
[384619406,1757484656458,-480.0,0.00014246,2]
[384619407,1757484656467,-480.0,0.00014246,2]
[384619408,1757484656477,-480.0,0.00014246,2]
[384619409,1757484656487,-480.0,0.00014246,2]
[384619410,1757484656496,-480.0,0.00014246,2]
[384619411,1757484656505,-480.0,0.00014246,2]
[384619412,1757484656515,-481.78310247,0.00014246,2]
[384619413,1757484656525,-480.0,0.00014246,2]
[384619414,1757484656534,-480.0,0.00014246,2]
[384619415,1757484656543,-480.0,0.00014246,2]
[384619416,1757484656553,-485.44202151,0.00014246,2]
[384619417,1757484656562,-480.0,0.00014246,2]
[384619418,1757484656572,-485.8117071,0.00014246,2]
[384619419,1757484656582,-777.98,0.00014246,2]
[384619420,1757484656591,-480.0,0.00014246,2]
[384619421,1757484656601,-480.0,0.00014246,2]
[384619422,1757484656610,-486.99763522,0.00014246,2]
[384619423,1757484656620,-480.0,0.00014246,2]
[384619424,1757484656629,-480.0,0.00014246,2]
[384619425,1757484656639,-485.0796989,0.00014246,2]
[384619426,1757484656648,-480.0,0.00014246,2]
[384619427,1757484656658,-480.0,0.00014246,2]
[384619428,1757484656667,-567.59001659,0.00014246,2]
[384619429,1757484656677,-483.4348085,0.00014246,2]
[384619430,1757484656686,-480.0,0.00014246,2]
[384619431,1757484656695,-480.0,0.00014246,2]
[384619432,1757484656705,-382.61731258,0.00014246,2]
[384619433,1757484656714,-480.0,0.00014246,2]
[384619434,1757484656723,-480.0,0.00014246,2]
[384619435,1757484656732,-480.0,0.00014246,2]
[384619436,1757484656741,-480.0,0.00014246,2]
[384619437,1757484656750,-480.0,0.00014246,2]
[384619438,1757484656759,-366.14097192,0.00014246,2]
[384619439,1757484656769,-480.0,0.00014246,2]
[384619440,1757484656779,-480.0,0.00014246,2]
[384619441,1757484656791,-486.62054277,0.00014246,2]
[384619442,1757484656801,-480.0,0.00014246,2]
[384619443,1757484656810,-480.0,0.00014246,2]
[384619444,1757484656820,-480.0,0.00014246,2]
[384619445,1757484656830,-480.0,0.00014246,2]
[384619446,1757484656839,-500.0,0.00014246,2]
[384619447,1757484656849,-168.0,0.00014286,2]
[384619448,1757484656859,-168.0,0.00014292,2]
[384619449,1757484656869,-151.0,0.000143,2]
[384619450,1757484656879,-168.0,0.00014339,2]
[384619451,1757484656889,-168.0,0.00014339,2]
[384619452,1757484656899,-168.0,0.00014356,2]
[384619453,1757484656908,-151.0,0.000144,2]
[384619454,1757484656918,-151.0,0.000144,2]
[384619455,1757484656927,-586.0,0.00014407,2]
[384619456,1757484656937,-168.0,0.00014466,2]
[384619457,1757484656945,-21511.66295348,0.000145,2]
[384619458,1757484657174,-72.25303829,0.000145,2]
[384619459,1757484657183,-500.0,0.000145,2]
[384619460,1757484657193,-151.0,0.000145,2]
[384619461,1757484657202,-151.0,0.000145,2]
[384619462,1757484657211,-500.0,0.000145,2]
[384619463,1757484657221,-168.0,0.00014511,2]
[384619464,1757484657231,-500.0,0.0001452,2]
[384619465,1757484657240,-157.0,0.0001452,2]
[384619466,1757484657250,-157.0,0.0001452,2]
[384619467,1757484657259,-231.64016978,0.0001452,2]
[384619468,1757484657269,-558.0,0.0001452,2]
[384619469,1757484657278,-480.0,0.0001452,2]
[384619470,1757484657287,-484.29761086,0.0001452,2]
[384619471,1757484657296,-554.04672053,0.0001452,2]
[384619472,1757484657305,-480.0,0.0001452,2]
[384619473,1757484657315,-480.0,0.0001452,2]
[384619474,1757484657325,-499.35578423,0.0001452,2]
[384619475,1757484657334,-480.0,0.0001452,2]
[384619476,1757484657343,-480.0,0.0001452,2]
[384619477,1757484657353,-480.0,0.0001452,2]
[384619478,1757484657362,-486.76836901,0.0001452,2]
[384619479,1757484657371,-480.0,0.0001452,2]
[384619480,1757484657381,-480.0,0.0001452,2]
[384619481,1757484657390,-480.0,0.0001452,2]
[384619482,1757484657399,-480.0,0.0001452,2]
[384619483,1757484657408,-500.0,0.0001452,2]
[384619484,1757484657417,-480.0,0.0001452,2]
[384619485,1757484657426,-480.0,0.0001452,2]
[384619486,1757484657435,-480.0,0.0001452,2]
[384619487,1757484657444,-480.0,0.0001452,2]
[384619488,1757484657453,-480.0,0.0001452,2]
[384619489,1757484657462,-480.0,0.0001452,2]
[384619490,1757484657472,-480.0,0.0001452,2]
[384619491,1757484657481,-480.0,0.0001452,2]
[384619492,1757484657490,-480.0,0.0001452,2]
[384619493,1757484657499,-595.75650685,0.0001452,2]
[384619494,1757484657508,-480.0,0.0001452,2]
[384619495,1757484657518,-480.0,0.0001452,2]
[384619496,1757484657527,-480.0,0.0001452,2]
[384619497,1757484657536,-480.0,0.0001452,2]
[384619498,1757484657545,-487.06740707,0.0001452,2]
[384619499,1757484657554,-480.0,0.0001452,2]
[384619500,1757484657563,-484.51145925,0.0001452,2]
[384619501,1757484657573,-489.58821061,0.0001452,2]
[384619502,1757484657582,-480.0,0.0001452,2]
[384619503,1757484657591,-480.0,0.0001452,2]
[384619504,1757484657600,-480.0,0.0001452,2]
[384619505,1757484657609,-480.0,0.0001452,2]
[384619506,1757484657618,-480.0,0.0001452,2]
[384619507,1757484657627,-431.67234534,0.0001452,2]
[384619508,1757484657636,-480.0,0.0001452,2]
[384619509,1757484657646,-480.0,0.0001452,2]
[384619510,1757484657655,-480.0,0.0001452,2]
[384619511,1757484657664,-480.0,0.0001452,2]
[384619512,1757484657674,-480.0,0.0001452,2]
[384619513,1757484657683,-480.0,0.0001452,2]
[384619514,1757484657692,-436.72328469,0.0001452,2]
[384619515,1757484657702,-480.0,0.0001452,2]
[384619516,1757484657711,-480.0,0.0001452,2]
[384619517,1757484657720,-480.0,0.0001452,2]
[384619518,1757484657729,-480.0,0.0001452,2]
[384619519,1757484657739,-480.0,0.0001452,2]
[384619520,1757484657747,-480.0,0.0001452,2]
[384619521,1757484657757,-480.0,0.0001452,2]
[384619522,1757484657766,-480.0,0.0001452,2]
[384619523,1757484657776,-480.0,0.0001452,2]
[384619524,1757484657787,-480.0,0.0001452,2]
[384619525,1757484657797,-480.0,0.0001452,2]
[384619526,1757484657807,-291.83342601,0.0001452,2]
[384619527,1757484657817,-264.78192324,0.0001452,2]
[384619528,1757484657828,-480.0,0.0001452,2]
[384619529,1757484657837,-492.98153016,0.0001452,2]
[384619530,1757484657847,-496.91705974,0.0001452,2]
[384619531,1757484657857,-480.0,0.0001452,2]
[384619532,1757484657867,-480.0,0.0001452,2]
[384619533,1757484657876,-480.0,0.0001452,2]
[384619534,1757484657886,-597.5525167,0.0001452,2]
[384619535,1757484657895,-480.0,0.0001452,2]
[384619536,1757484657905,-480.0,0.0001452,2]
[384619537,1757484657914,-480.0,0.0001452,2]
[384619538,1757484657924,-898.09,0.0001452,2]
[384619539,1757484657933,-480.0,0.0001452,2]
[384619540,1757484657942,-987.19,0.0001452,2]
[384619541,1757484657952,-480.0,0.0001452,2]
[384619542,1757484657961,-8763.89,0.0001452,2]
[384619543,1757484657971,-480.0,0.0001452,2]
[384619544,1757484657980,-480.0,0.0001452,2]
[384619545,1757484657990,-723.59,0.0001452,2]
[384619546,1757484657999,-480.0,0.0001452,2]
[384619547,1757484658008,-480.0,0.0001452,2]
[384619548,1757484658017,-480.0,0.0001452,2]
[384619549,1757484658026,-483.30622859,0.0001452,2]
[384619550,1757484658035,-480.0,0.0001452,2]
[384619551,1757484658045,-480.0,0.0001452,2]
[384619552,1757484658055,-480.0,0.0001452,2]
[384619553,1757484658064,-480.0,0.0001452,2]
[384619554,1757484658074,-480.0,0.0001452,2]
[384619555,1757484658084,-480.0,0.0001452,2]
[384619556,1757484658093,-480.0,0.0001452,2]
[384619557,1757484658102,-480.0,0.0001452,2]
[384619558,1757484658111,-480.0,0.0001452,2]
[384619559,1757484658121,-585.24,0.0001452,2]
[384619560,1757484658130,-480.0,0.0001452,2]
[384619561,1757484658140,-480.0,0.0001452,2]
[384619562,1757484658149,-480.0,0.0001452,2]
[384619563,1757484658158,-480.0,0.0001452,2]
[384619564,1757484658167,-480.0,0.0001452,2]
[384619565,1757484658177,-480.0,0.0001452,2]
[384619566,1757484658186,-760.57,0.0001452,2]
[384619567,1757484658195,-480.0,0.0001452,2]
[384619568,1757484658204,-480.0,0.0001452,2]
[384619569,1757484658213,-480.0,0.0001452,2]
[384619570,1757484658222,-480.0,0.0001452,2]
[384619571,1757484658232,-480.0,0.0001452,2]
[384619572,1757484658241,-815.92,0.0001452,2]
[384619573,1757484658250,-480.0,0.0001452,2]
[384619574,1757484658259,-480.0,0.0001452,2]
[384619575,1757484658269,-480.0,0.0001452,2]
[384619576,1757484658278,-480.0,0.0001452,2]
[384619577,1757484658287,-480.0,0.0001452,2]
[384619578,1757484658296,-480.0,0.0001452,2]
[384619579,1757484658306,-480.0,0.0001452,2]
[384619580,1757484658316,-480.0,0.0001452,2]
[384619581,1757484658325,-480.0,0.0001452,2]
[384619582,1757484658335,-480.0,0.0001452,2]
[384619583,1757484658344,-480.0,0.0001452,2]
[384619584,1757484658353,-480.0,0.0001452,2]
[384619585,1757484658362,-480.0,0.0001452,2]
[384619586,1757484658372,-480.0,0.0001452,2]
[384619587,1757484658381,-488.36447224,0.0001452,2]
[384619588,1757484658390,-480.0,0.0001452,2]
[384619589,1757484658399,-489.3578687,0.0001452,2]
[384619590,1757484658409,-798.65,0.0001452,2]
[384619591,1757484658418,-494.45746094,0.0001452,2]
[384619592,1757484658427,-5038.12,0.0001452,2]
[384619593,1757484658437,-480.0,0.0001452,2]
[384619594,1757484658446,-1104.48,0.0001452,2]
[384619595,1757484658456,-480.0,0.0001452,2]
[384619596,1757484658466,-157.32999767,0.0001452,2]
[384619597,1757484658482,-480.0,0.0001452,2]
[384619598,1757484658491,-480.0,0.0001452,2]
[384619599,1757484658501,-1873.01,0.0001452,2]
[384619600,1757484658510,-480.0,0.0001452,2]
[384619601,1757484658520,-480.0,0.0001452,2]
[384619602,1757484658529,-480.0,0.0001452,2]
[384619603,1757484658538,-480.0,0.0001452,2]
[384619604,1757484658548,-480.0,0.0001452,2]
[384619605,1757484658557,-480.0,0.0001452,2]
[384619606,1757484658566,-480.0,0.0001452,2]
[384619607,1757484658576,-388.55581416,0.0001452,2]
[384619608,1757484658585,-480.0,0.0001452,2]
[384619609,1757484658595,-480.0,0.0001452,2]
[384619610,1757484658604,-777.98,0.0001452,2]
[384619611,1757484658614,-480.0,0.0001452,2]
[384619612,1757484658623,-480.0,0.0001452,2]
[384619613,1757484658633,-480.0,0.0001452,2]
[384619614,1757484658642,-480.0,0.0001452,2]
[384619615,1757484658651,-482.2648983,0.0001452,2]
[384619616,1757484658661,-486.6526982,0.0001452,2]
[384619617,1757484658671,-480.0,0.0001452,2]
[384619618,1757484658680,-485.33032193,0.0001452,2]
[384619619,1757484658690,-480.0,0.0001452,2]
[384619620,1757484658699,-480.0,0.0001452,2]
[384619621,1757484658709,-480.0,0.0001452,2]
[384619622,1757484658718,-480.0,0.0001452,2]
[384619623,1757484658727,-480.0,0.0001452,2]
[384619624,1757484658737,-480.0,0.0001452,2]
[384619625,1757484658746,-500.57101457,0.00014521,2]
[384619626,1757484658756,-563.6851344,0.00014521,2]
[384619627,1757484658765,-726.06879389,0.00014521,2]
[384619628,1757484658775,-1092.50870819,0.00014521,2]
[384619629,1757484658787,-1000.0,0.00014521,2]
[384619630,1757484658796,-983.17738855,0.00014521,2]
[384619631,1757484658805,-1000.0,0.00014521,2]
[384619632,1757484658816,-503.57410472,0.00014521,2]
[384619633,1757484658826,-501.39654504,0.00014521,2]
[384619634,1757484658836,-1000.0,0.00014521,2]
[384619635,1757484658846,-1000.0,0.00014521,2]
[384619636,1757484658855,-1000.0,0.00014521,2]
[384619637,1757484658867,-501.15229447,0.00014521,2]
[384619638,1757484658876,-393.34958586,0.00014521,2]
[384619639,1757484658885,-1000.0,0.00014521,2]
[384619640,1757484658895,-185.88165138,0.00014521,2]
[384619641,1757484658904,-1000.0,0.00014521,2]
[384619642,1757484658913,-1000.0,0.00014521,2]
[384619643,1757484658923,-501.65791704,0.00014521,2]
[384619644,1757484658932,-1000.0,0.00014521,2]
[384619645,1757484658942,-1000.0,0.00014521,2]
[384619646,1757484658952,-943.77761255,0.00014521,2]
[384619647,1757484658961,-1000.0,0.00014521,2]
[384619648,1757484658971,-1002.8461323,0.00014521,2]
[384619649,1757484658981,-501.45647709,0.00014521,2]
[384619650,1757484658993,-1000.0,0.00014521,2]
[384619651,1757484659002,-295.22863629,0.00014521,2]
[384619652,1757484659012,-1000.0,0.00014521,2]
[384619653,1757484659021,-1000.0,0.00014521,2]
[384619654,1757484659030,-1000.0,0.00014521,2]
[384619655,1757484659040,-747.99452224,0.00014521,2]
[384619656,1757484659049,-1000.0,0.00014521,2]
[384619657,1757484659059,-151.0,0.000146,2]
[384619658,1757484659068,-151.0,0.000146,2]
[384619659,1757484659078,-151.0,0.000147,2]
[384619660,1757484659088,-151.0,0.000147,2]
[384619661,1757484659097,-168.0,0.00014729,2]
[384619662,1757484659107,-448.5,0.00014794,2]
[384619663,1757484659117,-284.33140433,0.00014794,2]
[384619664,1757484659126,-157.0,0.00014794,2]
[384619665,1757484659135,-558.0,0.00014794,2]
[384619666,1757484659144,-500.0,0.00014794,2]
[384619667,1757484659154,-480.0,0.00014794,2]
[384619668,1757484659163,-480.0,0.00014794,2]
[384619669,1757484659173,-494.15666712,0.00014794,2]
[384619670,1757484659183,-480.0,0.00014794,2]
[384619671,1757484659192,-480.0,0.00014794,2]
[384619672,1757484659202,-480.0,0.00014794,2]
[384619673,1757484659212,-480.0,0.00014794,2]
[384619674,1757484659221,-480.0,0.00014794,2]
[384619675,1757484659231,-480.0,0.00014794,2]
[384619676,1757484659241,-480.0,0.00014794,2]
[384619677,1757484659251,-480.0,0.00014794,2]
[384619678,1757484659262,-480.0,0.00014794,2]
[384619679,1757484659272,-480.0,0.00014794,2]
[384619680,1757484659282,-480.0,0.00014794,2]
[384619681,1757484659294,-480.0,0.00014794,2]
[384619682,1757484659304,-319.75183636,0.00014794,2]
[384619683,1757484659313,-426.19335624,0.00014794,2]
[384619684,1757484659323,-480.0,0.00014794,2]
[384619685,1757484659333,-480.0,0.00014794,2]
[384619686,1757484659343,-480.0,0.00014794,2]
[384619687,1757484659352,-480.0,0.00014794,2]
[384619688,1757484659361,-480.0,0.00014794,2]
[384619689,1757484659370,-151.97091262,0.00014794,2]
[384619690,1757484659380,-480.0,0.00014794,2]
[384619691,1757484659389,-480.0,0.00014794,2]
[384619692,1757484659400,-480.0,0.00014794,2]
[384619693,1757484659504,-200.80405209,0.00014794,2]
[384619694,1757484659514,-480.0,0.00014794,2]
[384619695,1757484659524,-480.0,0.00014794,2]
[384619696,1757484659533,-493.43626385,0.00014794,2]
[384619697,1757484659543,-480.0,0.00014794,2]
[384619698,1757484659552,-480.0,0.00014794,2]
[384619699,1757484659562,-480.0,0.00014794,2]
[384619700,1757484659571,-495.20905372,0.00014794,2]
[384619701,1757484659581,-480.0,0.00014794,2]
[384619702,1757484659590,-480.0,0.00014794,2]
[384619703,1757484659599,-480.0,0.00014794,2]
[384619704,1757484659609,-480.0,0.00014794,2]
[384619705,1757484659619,-480.0,0.00014794,2]
[384619706,1757484659628,-480.0,0.00014794,2]
[384619707,1757484659637,-480.0,0.00014794,2]
[384619708,1757484659647,-480.0,0.00014794,2]
[384619709,1757484659657,-480.0,0.00014794,2]
[384619710,1757484659666,-480.0,0.00014794,2]
[384619711,1757484659676,-480.0,0.00014794,2]
[384619712,1757484659685,-480.0,0.00014794,2]
[384619713,1757484659694,-480.0,0.00014794,2]
[384619714,1757484659704,-480.0,0.00014794,2]
[384619715,1757484659713,-480.0,0.00014794,2]
[384619716,1757484659722,-480.0,0.00014794,2]
[384619717,1757484659731,-480.0,0.00014794,2]
[384619718,1757484659741,-482.81642084,0.00014794,2]
[384619719,1757484659750,-480.0,0.00014794,2]
[384619720,1757484659759,-898.09,0.00014794,2]
[384619721,1757484659769,-480.0,0.00014794,2]
[384619722,1757484659778,-987.19,0.00014794,2]
[384619723,1757484659792,-480.0,0.00014794,2]
[384619724,1757484659801,-8763.89,0.00014794,2]
[384619725,1757484659811,-480.0,0.00014794,2]
[384619726,1757484659820,-480.0,0.00014794,2]
[384619727,1757484659831,-723.59,0.00014794,2]
[384619728,1757484659840,-480.0,0.00014794,2]
[384619729,1757484659849,-480.0,0.00014794,2]
[384619730,1757484659859,-480.0,0.00014794,2]
[384619731,1757484659868,-480.0,0.00014794,2]
[384619732,1757484659880,-480.0,0.00014794,2]
[384619733,1757484659889,-480.0,0.00014794,2]
[384619734,1757484659899,-480.0,0.00014794,2]
[384619735,1757484659908,-480.0,0.00014794,2]
[384619736,1757484659918,-327.36542972,0.00014794,2]
[384619737,1757484659928,-480.0,0.00014794,2]
[384619738,1757484659937,-480.0,0.00014794,2]
[384619739,1757484659947,-480.0,0.00014794,2]
[384619740,1757484659956,-585.24,0.00014794,2]
[384619741,1757484659966,-493.26544173,0.00014794,2]
[384619742,1757484659975,-480.0,0.00014794,2]
[384619743,1757484659985,-480.0,0.00014794,2]
[384619744,1757484659994,-480.0,0.00014794,2]
[384619745,1757484660003,-480.0,0.00014794,2]
[384619746,1757484660013,-760.57,0.00014794,2]
[384619747,1757484660023,-427.68434068,0.00014794,2]
[384619748,1757484660032,-480.0,0.00014794,2]
[384619749,1757484660042,-480.0,0.00014794,2]
[384619750,1757484660051,-480.0,0.00014794,2]
[384619751,1757484660061,-815.92,0.00014794,2]
[384619752,1757484660071,-480.0,0.00014794,2]
[384619753,1757484660080,-480.0,0.00014794,2]
[384619754,1757484660089,-480.0,0.00014794,2]
[384619755,1757484660100,-480.0,0.00014794,2]
[384619756,1757484660110,-480.0,0.00014794,2]
[384619757,1757484660119,-480.0,0.00014794,2]
[384619758,1757484660129,-480.0,0.00014794,2]
[384619759,1757484660139,-480.0,0.00014794,2]
[384619760,1757484660148,-480.0,0.00014794,2]
[384619761,1757484660158,-480.0,0.00014794,2]
[384619762,1757484660167,-480.0,0.00014794,2]
[384619763,1757484660177,-480.0,0.00014794,2]
[384619764,1757484660186,-480.0,0.00014794,2]
[384619765,1757484660196,-480.0,0.00014794,2]
[384619766,1757484660205,-480.0,0.00014794,2]
[384619767,1757484660214,-798.65,0.00014794,2]
[384619768,1757484660224,-5038.12,0.00014794,2]
[384619769,1757484660233,-480.0,0.00014794,2]
[384619770,1757484660243,-1104.48,0.00014794,2]
[384619771,1757484660253,-480.0,0.00014794,2]
[384619772,1757484660262,-480.0,0.00014794,2]
[384619773,1757484660272,-480.0,0.00014794,2]
[384619774,1757484660282,-1873.01,0.00014794,2]
[384619775,1757484660291,-480.0,0.00014794,2]
[384619776,1757484660301,-480.0,0.00014794,2]
[384619777,1757484660310,-480.0,0.00014794,2]
[384619778,1757484660320,-480.0,0.00014794,2]
[384619779,1757484660330,-480.0,0.00014794,2]
[384619780,1757484660340,-480.0,0.00014794,2]
[384619781,1757484660349,-480.0,0.00014794,2]
[384619782,1757484660359,-501.17337901,0.00014794,2]
[384619783,1757484660368,-777.98,0.00014794,2]
[384619784,1757484660378,-480.0,0.00014794,2]
[384619785,1757484660387,-480.0,0.00014794,2]
[384619786,1757484660397,-480.0,0.00014794,2]
[384619787,1757484660406,-480.0,0.00014794,2]
[384619788,1757484660416,-480.0,0.00014794,2]
[384619789,1757484660426,-480.0,0.00014794,2]
[384619790,1757484660435,-487.47776062,0.00014794,2]
[384619791,1757484660446,-480.0,0.00014794,2]
[384619792,1757484660456,-480.0,0.00014794,2]
[384619793,1757484660465,-480.0,0.00014794,2]
[384619794,1757484660474,-484.69285329,0.00014794,2]
[384619795,1757484660484,-151.0,0.000148,2]
[384619796,1757484660493,-168.0,0.00014805,2]
[384619797,1757484660502,-160.0,0.00014817,2]
[384619798,1757484660511,-160.0,0.00014817,2]
[384619799,1757484660520,-160.0,0.00014817,2]
[384619800,1757484660529,-160.0,0.00014817,2]
[384619801,1757484660538,-160.0,0.00014817,2]
[384619802,1757484660548,-203.30414021,0.00014817,2]
[384619803,1757484660557,-417.15472785,0.00014817,2]
[384619804,1757484660567,-160.0,0.00014817,2]
[384619805,1757484660576,-846.88337432,0.00014817,2]
[384619806,1757484660586,-530.87637315,0.00014817,2]
[384619807,1757484660595,-233.08191698,0.00014817,2]
[384619808,1757484660604,-217.67150996,0.00014817,2]
[384619809,1757484660613,-160.0,0.00014817,2]
[384619810,1757484660622,-168.0,0.00014847,2]
[384619811,1757484660631,-584.94832412,0.000149,2]
[384619812,1757484660640,-1000.0,0.000149,2]
[384619813,1757484660649,-151.0,0.000149,2]
[384619814,1757484660659,-151.0,0.000149,2]
[384619815,1757484660668,-420.0,0.00014902,2]
[384619816,1757484660677,-586.0,0.00014919,2]